bitfinex/quotes_BTCUSD_20260310
["timestamp","ask_amount","ask_price","bid_price","bid_amount"]
[1773124226259,0.0302238,70162.0,70140.0,0.07128599]
[1773124226844,0.0302238,70162.0,70135.0,0.07273108]
[1773124226845,0.03,70160.0,70135.0,0.07273108]
[1773124227219,0.03,70160.0,70136.0,0.05401985]
[1773124227726,0.0302238,70160.0,70136.0,0.05401985]
[1773124228171,0.0302238,70160.0,70135.0,0.10287249]
[1773124228468,0.0302238,70160.0,70147.0,0.0002]
[1773124228896,0.03,70158.0,70147.0,0.0002]
[1773124229110,0.00144,70157.0,70147.0,0.0002]
[1773124230137,0.00144,70157.0,70139.0,0.0001]
[1773124230950,0.03,70155.0,70139.0,0.0001]
[1773124232416,0.031,70155.0,70139.0,0.0001]
[1773124232627,0.032,70155.0,70139.0,0.0001]
[1773124233026,0.03,70153.0,70139.0,0.0001]
[1773124234408,0.031,70153.0,70139.0,0.0001]
[1773124234818,0.032,70153.0,70139.0,0.0001]
[1773124235388,0.03,70151.0,70139.0,0.0001]
[1773124235591,0.00144,70150.0,70139.0,0.0001]
[1773124237379,0.03,70148.0,70139.0,0.0001]
[1773124238704,0.031,70148.0,70139.0,0.0001]
[1773124239807,0.03,70146.0,70139.0,0.0001]
[1773124241387,0.031,70146.0,70139.0,0.0001]
[1773124242524,0.03,70144.0,70139.0,0.0001]
[1773124242727,0.00144,70143.0,70139.0,0.0001]
[1773124243022,0.00144,70143.0,70132.0,0.0002]
[1773124243225,0.00144,70143.0,70126.0,0.07130023]
[1773124243429,0.00144,70143.0,70125.0,0.00023]
[1773124244214,0.00144,70143.0,70126.0,0.07130023]
[1773124244420,0.03,70142.0,70129.0,0.07129718]
[1773124244646,0.00144,70141.0,70132.0,0.05401985]
[1773124244844,0.00144,70141.0,70133.0,0.03272587]
[1773124245220,0.00144,70141.0,70129.0,0.07129718]
[1773124245425,0.03144,70141.0,70132.0,0.03272587]
[1773124245661,0.03144,70141.0,70129.0,0.07129718]
[1773124245662,0.03144,70141.0,70134.0,0.03272587]
[1773124246500,0.03,70140.0,70134.0,0.03272587]
[1773124248004,0.03,70140.0,70131.0,0.10402066]
[1773124248159,0.03,70140.0,70131.0,0.03272587]
[1773124248654,0.03,70138.0,70131.0,0.03272587]
[1773124248829,0.07017475,70139.0,70131.0,0.03272587]
[1773124249043,0.07017475,70139.0,70134.0,0.0002]
[1773124249456,0.07017475,70139.0,70126.0,0.0002]
[1773124251125,0.00144,70138.0,70126.0,0.0002]
[1773124251324,0.00144,70138.0,70130.0,0.03272587]
[1773124251560,0.00144,70138.0,70131.0,0.05373185]
[1773124251713,0.00144,70138.0,70133.0,0.05373185]
[1773124251913,0.00144,70140.0,70126.0,0.07150012]
[1773124252112,0.00144,70139.0,70126.0,0.07150012]
[1773124252415,0.00144,70138.0,70129.0,0.05373185]
[1773124252616,0.00144,70137.0,70131.0,0.03272587]
[1773124252933,0.00144,70137.0,70129.0,0.05286785]
[1773124253153,0.07127806,70148.0,70131.0,0.07129514]
[1773124253286,0.00022001,70155.0,70138.0,0.08501772]
[1773124253287,0.00144,70150.0,70138.0,0.08501772]
[1773124253491,0.00144,70151.0,70138.0,0.03272587]
[1773124253702,0.00144,70151.0,70139.0,0.05171585]
[1773124253915,0.00144,70151.0,70143.0,0.05171585]
[1773124254125,0.00144,70151.0,70146.0,0.03272587]
[1773124254355,0.00144,70151.0,70138.0,0.05171585]
[1773124254583,0.0002238,70158.0,70138.0,0.05171585]
[1773124254584,1e-08,70177.0,70145.0,0.16256558]
[1773124254786,0.00045401,70184.0,70138.0,0.0016734]
[1773124254787,0.07686577,70180.0,70163.0,0.03272587]
[1773124255002,0.07686595,70180.0,70164.0,0.00144]
[1773124255213,0.07686595,70180.0,70157.0,0.00144]
[1773124255214,0.03144,70179.0,70157.0,0.00144]
[1773124255415,0.03144,70179.0,70157.0,0.02924214]
[1773124255543,0.03144,70179.0,70159.0,0.05171585]
[1773124255750,0.03144,70179.0,70159.0,0.08095799]
[1773124256249,0.03144,70179.0,70160.0,0.05171585]
[1773124256855,0.03144,70179.0,70163.0,0.02924214]
[1773124257207,0.03266001,70179.0,70163.0,0.02924214]
[1773124257998,0.03,70177.0,70163.0,0.02924214]
[1773124258943,0.03,70177.0,70165.0,0.02924214]
[1773124259327,0.10146676,70179.0,70165.0,0.02924214]
[1773124259539,0.00562,70180.0,70164.0,0.00144]
[1773124259738,0.00189401,70184.0,70166.0,0.05025985]
[1773124259973,0.00189401,70184.0,70169.0,0.02924214]
[1773124260125,0.00189401,70184.0,70173.0,0.02924214]
[1773124260328,0.07123025,70195.0,70171.0,0.0712545]
[1773124260329,0.03144,70191.0,70177.0,0.02924214]
[1773124260527,0.03,70191.0,70180.0,0.04988105]
[1773124260851,0.07146258,70197.0,70183.0,0.02924214]
[1773124260852,0.0002337,70197.0,70183.0,0.02924214]
[1773124261050,0.0002337,70197.0,70186.0,0.04954905]
[1773124261255,0.0002337,70197.0,70188.0,0.02924214]
[1773124261473,0.10146215,70197.0,70188.0,0.02924214]
[1773124261805,0.00144,70196.0,70189.0,0.02924214]
[1773124262002,0.07123014,70195.0,70183.0,0.07124232]
[1773124262166,0.03,70194.0,70183.0,0.07124232]
[1773124262364,0.03,70194.0,70188.0,0.001]
[1773124262711,0.03,70194.0,70184.0,0.02924214]
[1773124262939,0.03,70194.0,70189.0,0.001]
[1773124263167,0.03,70193.0,70184.0,0.02924214]
[1773124263394,0.00144,70196.0,70184.0,0.02924214]
[1773124263586,0.07123014,70195.0,70184.0,0.02924214]
[1773124263982,0.07267014,70196.0,70184.0,0.02924214]
[1773124264290,0.07145516,70200.0,70191.0,0.02924214]
[1773124264466,0.07145516,70200.0,70192.0,0.04950231]
[1773124264666,0.07145516,70200.0,70193.0,0.02924214]
[1773124265052,0.03,70199.0,70187.0,0.00144]
[1773124265248,0.03,70199.0,70185.0,0.02924214]
[1773124265471,0.03,70199.0,70185.0,0.1004821]
[1773124266389,0.03,70197.0,70185.0,0.1004821]
[1773124266599,0.00144,70196.0,70185.0,0.1004821]
[1773124267184,0.00144,70196.0,70185.0,0.07123996]
[1773124267402,0.00144,70196.0,70187.0,0.02924214]
[1773124267578,0.00144,70196.0,70189.0,0.02924214]
[1773124267984,0.00144,70196.0,70185.0,0.07123996]
[1773124268324,0.03,70205.0,70185.0,0.07123996]
[1773124268523,0.03,70205.0,70190.0,0.16256558]
[1773124268699,0.03,70205.0,70191.0,0.04936031]
[1773124268908,0.03,70205.0,70194.0,0.02924214]
[1773124269114,0.03,70205.0,70196.0,0.02924214]
[1773124269453,0.03,70204.0,70196.0,0.02924214]
[1773124269798,0.03,70204.0,70196.0,0.07860245]
[1773124269996,0.03,70204.0,70197.0,0.02924214]
[1773124270218,0.00144,70203.0,70197.0,0.02924214]
[1773124270424,0.03144,70203.0,70197.0,0.10046987]
[1773124270802,0.00144,70205.0,70199.0,0.02924214]
[1773124271002,0.07121935,70206.0,70199.0,0.02924214]
[1773124271212,0.07121855,70207.0,70199.0,0.04780716]
[1773124271419,0.03144,70206.0,70200.0,0.02924214]
[1773124271616,0.10265935,70206.0,70200.0,0.02924214]
[1773124271825,0.00022001,70205.0,70200.0,0.02924214]
[1773124272024,0.00022001,70205.0,70201.0,0.02924214]
[1773124272224,0.00144,70207.0,70203.0,0.02924214]
[1773124272450,0.00022001,70212.0,70203.0,0.02924214]
[1773124273435,0.00022001,70212.0,70204.0,0.02924214]
[1773124273604,0.00022001,70212.0,70205.0,0.02924214]
[1773124273809,0.00022001,70212.0,70206.0,0.07121898]
[1773124274043,0.00022001,70212.0,70207.0,0.02924214]
[1773124274442,0.00022001,70212.0,70205.0,0.07121898]
[1773124274693,0.03,70209.0,70193.0,0.02924214]
[1773124274892,0.07671543,70209.0,70193.0,0.02924214]
[1773124275298,0.03,70209.0,70193.0,0.02924214]
[1773124275527,0.03,70209.0,70194.0,0.0770493]
[1773124275851,0.03,70209.0,70194.0,0.02924214]
[1773124276054,0.03,70207.0,70194.0,0.1004731]
[1773124276259,0.00144,70206.0,70194.0,0.1004731]
[1773124276467,0.00144,70206.0,70194.0,0.07123096]
[1773124277224,0.00144,70206.0,70194.0,0.1004731]
[1773124278036,0.00144,70206.0,70188.0,0.00144]
[1773124278037,0.07121999,70205.0,70188.0,0.00144]
[1773124278276,0.07121999,70205.0,70181.0,0.07124412]
[1773124278277,0.03,70198.0,70181.0,0.07124412]
[1773124278553,0.00144,70197.0,70181.0,0.07124412]
[1773124279200,0.00144,70197.0,70182.0,0.07124309]
[1773124279364,0.00144,70197.0,70181.0,0.07124412]
[1773124279755,0.07671543,70198.0,70183.0,0.07124179]
[1773124279944,0.03144,70197.0,70182.0,0.07124268]
[1773124280152,0.03,70195.0,70182.0,0.07124268]
[1773124281003,0.00144,70199.0,70187.0,0.03646447]
[1773124281381,0.00144,70199.0,70184.0,0.0002]
[1773124281583,0.00144,70199.0,70174.0,0.06241031]
[1773124281584,0.03,70193.0,70174.0,0.07167024]
[1773124281792,0.03,70189.0,70174.0,0.000419]
[1773124281993,0.00144,70188.0,70174.0,0.000419]
[1773124282190,0.03,70186.0,70174.0,0.000419]
[1773124282719,0.03,70186.0,70169.0,0.0002]
[1773124282919,0.07123826,70187.0,70160.0,0.07126542]
[1773124282920,0.04671543,70181.0,70160.0,0.07126542]
[1773124283127,0.07123826,70187.0,70151.0,0.00048]
[1773124283128,0.04671543,70175.0,70151.0,0.00048]
[1773124283269,0.04671543,70175.0,70142.0,0.28100458]
[1773124283270,0.03,70168.0,70145.0,0.07128074]
[1773124283471,0.00144,70167.0,70147.0,0.03646447]
[1773124283676,0.00144,70167.0,70145.0,0.07128074]
[1773124283677,0.00144,70166.0,70151.0,0.03646447]
[1773124283913,0.00144,70166.0,70154.0,0.04780716]
[1773124284111,0.03,70164.0,70153.0,0.03646447]
[1773124284491,0.07671543,70162.0,70140.0,0.04780716]
[1773124284848,0.07671543,70162.0,70139.0,0.0712869]
[1773124284849,0.03,70158.0,70139.0,0.0712869]
[1773124285025,0.00144,70157.0,70139.0,0.0712869]
[1773124285348,0.00144,70157.0,70141.0,0.05451852]
[1773124285541,0.00144,70157.0,70142.0,0.00671136]
[1773124285757,0.0712606,70165.0,70144.0,0.04780716]
[1773124285949,0.03144,70164.0,70141.0,0.04780716]
[1773124286149,0.03,70162.0,70144.0,0.07128193]
[1773124286390,0.03,70162.0,70147.0,0.04780716]
[1773124286556,0.00144,70161.0,70150.0,0.00671136]
[1773124286757,0.00144,70161.0,70151.0,0.05451852]
[1773124286956,0.00144,70161.0,70152.0,0.00671136]
[1773124287258,0.00144,70161.0,70153.0,0.04780716]
[1773124289277,0.03,70160.0,70153.0,0.04780716]
[1773124289868,0.03,70160.0,70153.0,0.11907928]
[1773124290091,0.03,70160.0,70153.0,0.12579064]
[1773124290673,0.03,70160.0,70153.0,0.00671136]
[1773124291358,0.03,70158.0,70150.0,0.07127564]
[1773124292758,0.03,70158.0,70148.0,0.07127707]
[1773124293088,0.03,70158.0,70150.0,0.00671136]
[1773124293437,0.03,70158.0,70153.0,0.00691136]
[1773124293874,0.03,70158.0,70153.0,0.0002]
[1773124294262,0.03,70158.0,70145.0,0.0002]
[1773124294263,0.03,70156.0,70145.0,0.0002]
[1773124294463,0.00144,70155.0,70145.0,0.0002]
[1773124295033,0.03,70153.0,70145.0,0.0002]
[1773124296000,0.03,70153.0,70141.0,0.0002]
[1773124296291,0.07127177,70154.0,70127.0,0.07129886]
[1773124296292,0.03,70149.0,70127.0,0.07129886]
[1773124296518,0.03,70145.0,70127.0,0.07129886]
[1773124296742,0.03,70145.0,70128.0,0.07129783]
[1773124296918,0.07298274,70145.0,70128.0,0.07129783]
[1773124297081,0.10128295,70143.0,70127.0,0.07129886]
[1773124297284,0.00144,70142.0,70128.0,0.07129762]
[1773124297506,0.00144,70142.0,70129.0,0.06901696]
[1773124297674,0.03,70138.0,70125.0,0.00023]
[1773124297873,0.07298274,70138.0,70125.0,0.00023]
[1773124298095,0.03,70138.0,70125.0,0.00023]
[1773124298630,0.03,70134.0,70125.0,0.00023]
[1773124298777,0.01628413,70129.0,70125.0,0.00023]
[1773124298993,0.03,70128.0,70125.0,0.00023]
[1773124299197,0.00144,70127.0,70125.0,0.00023]
[1773124300745,0.03144,70127.0,70125.0,0.00023]
[1773124300907,0.02559551,70130.0,70125.0,0.00043]
[1773124301108,0.08757666,70134.0,70125.0,0.00043]
[1773124301109,0.01628413,70146.0,70126.0,0.07129996]
[1773124301306,0.07127786,70148.0,70131.0,0.04697345]
[1773124301307,0.01628413,70144.0,70131.0,0.04697345]
[1773124301707,0.03,70143.0,70127.0,0.04697345]
[1773124302045,0.03,70141.0,70127.0,0.04697345]
[1773124302796,0.00144,70142.0,70127.0,0.04697345]
[1773124303034,0.03,70141.0,70127.0,0.04697345]
[1773124303236,0.03,70139.0,70128.0,0.07129819]
[1773124303437,0.03,70139.0,70129.0,0.04697345]
[1773124304227,0.03,70141.0,70129.0,0.04697345]
[1773124304445,0.10128507,70141.0,70129.0,0.04697345]
[1773124304650,0.10128507,70141.0,70128.0,0.07129819]
[1773124304651,0.00144,70140.0,70128.0,0.07129819]
[1773124304851,0.04628413,70138.0,70128.0,0.07129819]
[1773124305266,0.10128836,70138.0,70128.0,0.04697345]
[1773124305441,0.03,70138.0,70128.0,0.04697345]
[1773124307568,0.03,70141.0,70130.0,0.04697345]
[1773124307949,0.04298274,70168.0,70131.0,0.04697345]
[1773124308158,0.00022001,70158.0,70141.0,0.04697345]
[1773124308356,0.00144,70157.0,70141.0,0.04697345]
[1773124309008,0.03,70156.0,70141.0,0.04697345]
[1773124309223,0.03,70156.0,70141.0,0.04797345]
[1773124309434,0.03,70156.0,70141.0,0.04697345]
[1773124309633,0.03,70154.0,70142.0,0.11825741]
[1773124309835,0.03,70154.0,70143.0,0.04697345]
[1773124310137,0.0727093,70157.0,70143.0,0.04697345]
[1773124310555,0.0712693,70157.0,70143.0,0.04697345]
[1773124310714,0.03144,70156.0,70143.0,0.04697345]
[1773124311111,0.00144,70155.0,70143.0,0.04697345]
[1773124311524,0.03,70152.0,70144.0,0.07128193]
[1773124312772,0.03,70151.0,70144.0,0.07128193]
[1773124313710,0.00144,70154.0,70144.0,0.07128193]
[1773124313907,0.00144,70153.0,70145.0,0.04347376]
[1773124314137,0.00022001,70158.0,70145.0,0.04347376]
[1773124314410,0.00144,70156.0,70145.0,0.04347376]
[1773124316081,0.00144,70156.0,70147.0,0.04347376]
[1773124317613,0.00144,70156.0,70146.0,0.0712799]
[1773124318222,0.03144,70156.0,70145.0,0.0712799]
[1773124318907,0.00474264,70155.0,70145.0,0.0712799]
[1773124319120,0.03474264,70155.0,70145.0,0.0712799]
[1773124319568,0.03,70155.0,70145.0,0.0712799]
[1773124319776,0.00144,70156.0,70146.0,0.04347376]
[1773124320217,0.00144,70156.0,70147.0,0.07127888]
[1773124321922,0.03,70155.0,70147.0,0.07127888]
[1773124322137,0.03,70153.0,70133.0,0.00473016]
[1773124322342,0.07127177,70154.0,70131.0,0.07129514]
[1773124322343,0.00474264,70149.0,70131.0,0.07129514]
[1773124322555,0.03,70144.0,70126.0,0.07129921]
[1773124322764,0.03,70144.0,70124.0,0.12059543]
[1773124322765,0.00474264,70141.0,70124.0,0.00582]
[1773124323049,0.00023,70150.0,70118.0,0.07150633]
[1773124323050,0.00474264,70133.0,70118.0,0.07150633]
[1773124323255,0.00474264,70131.0,70119.0,0.07150705]
[1773124323499,0.03144,70132.0,70119.0,0.11365832]
[1773124323672,0.03144,70132.0,70120.0,0.04688143]
[1773124323873,0.00023,70150.0,70130.0,0.04215127]
[1773124324073,0.00618264,70149.0,70132.0,0.00473016]
[1773124324363,0.03,70147.0,70132.0,0.00473016]
[1773124324986,0.00618264,70146.0,70132.0,0.00473016]
[1773124325196,0.00474264,70145.0,70132.0,0.00473016]
[1773124325390,0.00144,70144.0,70132.0,0.00473016]
[1773124325797,0.00618264,70144.0,70131.0,0.0712944]
[1773124326201,0.03,70142.0,70131.0,0.0712944]
[1773124327120,0.03,70142.0,70131.0,0.0703944]
[1773124327323,0.00144,70141.0,70131.0,0.0703944]
[1773124327909,0.00144,70140.0,70135.0,0.00473016]
[1773124328104,0.00144,70145.0,70137.0,0.04688143]
[1773124328268,0.00144,70145.0,70131.0,0.0703944]
[1773124328269,0.00144,70145.0,70134.0,0.00473016]
[1773124328455,0.00144,70145.0,70135.0,0.00473016]
[1773124328857,0.00144,70145.0,70133.0,0.07602327]
[1773124329109,0.00144,70145.0,70134.0,0.00473016]
[1773124329340,0.00144,70145.0,70136.0,0.00473016]
[1773124330079,0.00144,70145.0,70133.0,0.07604909]
[1773124330485,0.00022001,70142.0,70133.0,0.07604909]
[1773124331256,0.00022001,70142.0,70133.0,0.07129311]
[1773124332199,0.03022001,70142.0,70133.0,0.07129311]
[1773124333265,0.00022001,70142.0,70133.0,0.07129311]
[1773124333912,0.00496318,70140.0,70129.0,0.0002]
[1773124334134,0.00496318,70137.0,70129.0,0.0002]
[1773124335309,0.00496318,70137.0,70121.0,0.0715052]
[1773124335310,0.00496318,70134.0,70121.0,0.0715052]
[1773124335517,0.00640318,70133.0,70121.0,0.0715052]
[1773124337093,0.00640318,70133.0,70111.0,0.0002]
[1773124337094,0.04533002,70128.0,70111.0,0.0002]
[1773124337295,0.00496318,70126.0,70111.0,0.07151515]
[1773124337467,0.00496318,70126.0,70111.0,0.0002]
[1773124338254,0.00496318,70125.0,70111.0,0.0002]
[1773124338453,0.03,70126.0,70115.0,0.16279683]
[1773124338454,0.001,70126.0,70115.0,0.16279683]
[1773124338633,0.00144,70134.0,70120.0,0.00475598]
[1773124338775,0.00144,70133.0,70122.0,0.00475598]
[1773124338976,0.00144,70133.0,70123.0,0.04690725]
[1773124339247,0.03,70132.0,70124.0,0.07130226]
[1773124339440,0.03,70132.0,70124.0,0.07605824]
[1773124339644,0.00166001,70135.0,70126.0,0.04215127]
[1773124339799,0.07295193,70135.0,70126.0,0.04215127]
[1773124340210,0.00166001,70135.0,70127.0,0.00475598]
[1773124340412,0.00144,70139.0,70128.0,0.04690725]
[1773124340821,0.00144,70139.0,70125.0,0.00144]
[1773124341403,0.03,70137.0,70126.0,0.07130023]
[1773124343370,0.07128803,70138.0,70125.0,0.07130023]
[1773124343371,0.03,70135.0,70125.0,0.07130023]
[1773124343575,0.07129006,70136.0,70125.0,0.07130023]
[1773124343782,0.07272785,70139.0,70127.0,0.04215127]
[1773124343981,0.07272785,70139.0,70128.0,0.00475598]
[1773124344616,0.03,70138.0,70128.0,0.00475598]
[1773124346580,0.10128877,70138.0,70129.0,0.07129718]
[1773124347099,0.10150878,70138.0,70129.0,0.07129718]
[1773124347945,0.10150878,70138.0,70125.0,0.00475598]
[1773124348165,0.00496318,70137.0,70119.0,0.07626331]
[1773124348376,0.00496318,70134.0,70119.0,0.07626331]
[1773124348597,0.03,70131.0,70119.0,0.07626331]
[1773124349024,0.03,70131.0,70119.0,0.0002]
[1773124349025,0.00496318,70130.0,70119.0,0.0002]
[1773124349228,0.00496318,70128.0,70119.0,0.0002]
[1773124349478,0.00144,70127.0,70119.0,0.0002]
[1773124350367,0.00144,70127.0,70119.0,0.07250713]
[1773124350523,0.00144,70127.0,70120.0,0.04215127]
[1773124350723,0.03,70125.0,70119.0,0.07626311]
[1773124350916,0.03,70125.0,70119.0,0.00495598]
[1773124351219,0.03,70125.0,70119.0,0.0002]
[1773124351220,0.03496318,70125.0,70119.0,0.0002]
[1773124351665,0.03,70125.0,70119.0,0.0002]
[1773124352771,0.00496318,70122.0,70111.0,0.0002]
[1773124352916,0.00496318,70120.0,70111.0,0.0002]
[1773124353116,0.00144,70121.0,70111.0,0.0002]
[1773124354808,0.03,70119.0,70111.0,0.0002]
[1773124355176,0.07130633,70120.0,70111.0,0.0002]
[1773124356962,0.00496318,70119.0,70111.0,0.0002]
[1773124359049,0.07130836,70118.0,70111.0,0.0002]
[1773124359264,0.07130836,70118.0,70104.0,0.0002]
[1773124359265,0.00496318,70116.0,70104.0,0.0002]
[1773124359474,0.00496618,70112.0,70103.0,0.0002]
[1773124359665,0.00496618,70112.0,70100.0,0.00071]
[1773124360859,0.03496618,70112.0,70100.0,0.00071]
[1773124361060,0.03,70110.0,70100.0,0.00071]
[1773124361314,0.00144,70109.0,70100.0,0.00071]
[1773124362787,0.00144,70109.0,70096.0,0.00726]
[1773124362788,0.00496618,70108.0,70096.0,0.00582]
[1773124362951,0.00496618,70108.0,70091.0,0.00463344]
[1773124362952,0.03,70108.0,70091.0,0.00463344]
[1773124363165,0.03,70105.0,70091.0,0.00463344]
[1773124363360,0.00496618,70104.0,70092.0,0.0002]
[1773124363562,0.03,70105.0,70083.0,0.04827858]
[1773124363563,0.00496618,70102.0,70083.0,0.04827858]
[1773124363763,0.11371537,70134.0,70096.0,0.00562]
[1773124363989,0.00022001,70138.0,70120.0,0.16279683]
[1773124363990,0.00514619,70135.0,70120.0,0.16279683]
[1773124364221,0.04157616,70131.0,70110.0,0.16279683]
[1773124364434,0.00496618,70129.0,70112.0,0.00463344]
[1773124364847,0.00496618,70129.0,70112.0,0.04364514]
[1773124365043,0.00496618,70129.0,70113.0,0.00607344]
[1773124365247,0.03,70125.0,70103.0,0.07132287]
[1773124365445,0.00496618,70123.0,70105.0,0.04827858]
[1773124365745,0.00496618,70123.0,70107.0,0.00463344]
[1773124367141,0.00496618,70123.0,70107.0,0.04827858]
[1773124368147,0.07130429,70122.0,70107.0,0.11959775]
[1773124368354,0.03,70121.0,70107.0,0.11959775]
[1773124369134,0.03,70121.0,70108.0,0.00463344]
[1773124369326,0.03144,70126.0,70114.0,0.04364514]
[1773124369461,0.03144,70126.0,70115.0,0.04364514]
[1773124369686,0.03144,70126.0,70116.0,0.00463344]
[1773124370474,0.07129843,70128.0,70117.0,0.04364514]
[1773124370682,0.00022001,70121.0,70114.0,0.07131192]
[1773124371071,0.00022001,70121.0,70110.0,0.07131573]
[1773124371250,0.00022001,70121.0,70110.0,0.07127573]
[1773124371486,0.04157616,70119.0,70099.0,0.0002]
[1773124371745,0.00144,70120.0,70100.0,0.07155588]
[1773124371746,0.00496618,70117.0,70100.0,0.07155588]
[1773124371968,0.00144,70120.0,70099.0,0.0002]
[1773124371969,0.00496618,70112.0,70099.0,0.0002]
[1773124372101,0.00144,70111.0,70099.0,0.0002]
[1773124372318,0.00144,70111.0,70099.0,0.07152717]
[1773124372520,0.03,70109.0,70099.0,0.0002]
[1773124372831,0.03,70109.0,70099.0,0.07616061]
[1773124373050,0.03,70109.0,70099.0,0.11980575]
[1773124373930,0.03,70109.0,70099.0,0.04847858]
[1773124374340,0.03,70109.0,70100.0,0.07132667]
[1773124374969,0.10131842,70109.0,70099.0,0.04847858]
[1773124375302,0.10131842,70109.0,70100.0,0.00496809]
[1773124375303,0.03,70109.0,70100.0,0.00496809]
[1773124376121,0.00144,70114.0,70102.0,0.00496809]
[1773124376249,0.07130847,70118.0,70109.0,0.00496809]
[1773124376452,0.00144,70117.0,70109.0,0.00496809]
[1773124376979,0.07130723,70120.0,70105.0,0.07132156]
[1773124377179,0.00144,70117.0,70105.0,0.07628965]
[1773124377361,0.00144,70117.0,70106.0,0.00496809]
[1773124377755,0.00144,70117.0,70107.0,0.00496809]
[1773124377954,0.00144,70117.0,70108.0,0.00496809]
[1773124378156,0.03,70120.0,70110.0,0.00496809]
[1773124378522,0.02590117,70121.0,70112.0,0.00496809]
[1773124379286,0.00166001,70124.0,70112.0,0.07131393]
[1773124379493,0.10153135,70125.0,70115.0,0.00496809]
[1773124380599,0.10153135,70125.0,70112.0,0.07131393]
[1773124380749,0.00454853,70122.0,70109.0,0.00144]
[1773124381151,0.03,70116.0,70104.0,0.07132158]
[1773124381361,0.03,70114.0,70100.0,0.0002]
[1773124381569,0.03,70110.0,70100.0,0.0002]
[1773124381778,0.03,70110.0,70100.0,0.07152629]
[1773124382466,0.03,70110.0,70101.0,0.00496809]
[1773124382670,0.03,70109.0,70100.0,0.07152629]
[1773124383668,0.03,70108.0,70100.0,0.07152629]
[1773124384714,0.03,70110.0,70100.0,0.0002]
[1773124384933,0.03454853,70110.0,70100.0,0.0002]
[1773124385722,0.03144,70109.0,70100.0,0.07152646]
[1773124386376,0.03144,70109.0,70101.0,0.00496809]
[1773124386581,0.03144,70109.0,70100.0,0.05124705]
[1773124386788,0.03,70108.0,70101.0,0.00496809]
[1773124387631,0.00144,70109.0,70101.0,0.00496809]
[1773124387632,0.03,70106.0,70101.0,0.00496809]
[1773124387761,0.03,70106.0,70100.0,0.0002]
[1773124387986,0.03,70106.0,70096.0,0.00706]
[1773124388456,0.03,70106.0,70096.0,0.07839061]
[1773124388789,0.04413797,70105.0,70096.0,1e-08]
[1773124389006,0.03,70099.0,70092.0,0.0002]
[1773124389663,0.03,70097.0,70092.0,0.0002]
[1773124390879,0.03,70097.0,70085.0,0.17000425]
[1773124390880,0.04413797,70096.0,70085.0,0.17000425]
[1773124391099,0.03,70095.0,70083.0,0.00452179]
[1773124391542,0.03,70095.0,70084.0,0.00452179]
[1773124391777,0.00144,70103.0,70087.0,0.04147497]
[1773124391971,0.03144,70103.0,70090.0,0.00452179]
[1773124392183,0.03,70103.0,70090.0,0.00452179]
[1773124393340,0.03,70101.0,70091.0,0.07585762]
[1773124394768,0.03,70101.0,70092.0,0.00452179]
[1773124394938,0.03144,70104.0,70092.0,0.00452179]
[1773124395130,0.03,70101.0,70092.0,0.00452179]
[1773124395335,0.03,70101.0,70094.0,0.00452179]
[1773124396063,0.10132581,70101.0,70094.0,0.00452179]
[1773124398045,0.03,70100.0,70094.0,0.00452179]
[1773124398248,0.03,70100.0,70094.0,0.07133239]
[1773124398442,0.03,70100.0,70095.0,0.00452179]
[1773124398870,0.03,70100.0,70092.0,0.07585592]
[1773124399045,0.03,70099.0,70092.0,0.07585592]
[1773124399447,0.03,70099.0,70093.0,0.00452179]
[1773124399650,0.03,70097.0,70087.0,0.07173005]
[1773124399931,0.03,70097.0,70087.0,0.07133932]
[1773124400065,0.00144,70096.0,70085.0,0.07586277]
[1773124400277,0.00144,70096.0,70077.0,0.24135379]
[1773124400278,0.03,70092.0,70076.0,0.24135475]
[1773124400601,0.03,70086.0,70076.0,0.0713505]
[1773124400838,0.00922502,70087.0,70076.0,0.0713511]
[1773124401596,0.03,70082.0,70068.0,0.07697891]
[1773124402308,0.03922502,70082.0,70080.0,0.0002]
[1773124403892,0.10134541,70082.0,70080.0,0.0002]
[1773124404101,0.03922502,70081.0,70070.0,0.07135635]
[1773124404316,0.03922502,70081.0,70070.0,0.07279635]
[1773124405797,0.03,70080.0,70070.0,0.07279635]
[1773124406194,0.00922502,70085.0,70070.0,0.07279635]
[1773124406400,0.08056745,70085.0,70070.0,0.07279635]
[1773124406798,0.03,70090.0,70070.0,0.23567398]
[1773124407034,0.03,70090.0,70080.0,0.16287763]
[1773124407341,0.07133383,70093.0,70081.0,0.00144]
[1773124407539,0.07133383,70093.0,70080.0,0.00144]
[1773124407701,0.04413797,70091.0,70080.0,0.00144]
[1773124407900,0.00922502,70090.0,70080.0,0.00144]
[1773124408103,0.00922502,70090.0,70081.0,0.07134601]
[1773124408507,0.00922502,70090.0,70069.0,0.07135808]
[1773124408508,0.03,70084.0,70069.0,0.07135808]
[1773124408730,0.03,70080.0,70069.0,0.07135808]
[1773124409332,0.03,70080.0,70070.0,0.0002]
[1773124410481,0.03,70078.0,70070.0,0.07155645]
[1773124411387,0.03,70079.0,70070.0,0.07155645]
[1773124411588,0.03,70079.0,70070.0,0.07255645]
[1773124411766,0.03,70079.0,70071.0,0.00144]
[1773124413282,0.03,70078.0,70072.0,0.07135517]
[1773124413491,0.00144,70088.0,70072.0,0.07135517]
[1773124414381,0.03144,70088.0,70072.0,0.07135517]
[1773124415278,0.03,70084.0,70072.0,0.07135517]
[1773124415959,0.03,70082.0,70072.0,0.00144]
[1773124416426,0.03,70082.0,70071.0,0.07135517]
[1773124416621,0.03,70082.0,70072.0,0.00144]
[1773124417066,0.03144,70088.0,70075.0,0.00359738]
[1773124417269,0.03,70086.0,70076.0,0.0713511]
[1773124418674,0.03,70086.0,70076.0,0.07494848]
[1773124419977,0.10134094,70086.0,70076.0,0.07494848]
[1773124420370,0.10134094,70086.0,70076.0,0.0713511]
[1773124420992,0.03,70083.0,70073.0,0.07158244]
[1773124421168,0.00477852,70082.0,70073.0,0.07158244]
[1773124421370,0.03,70083.0,70073.0,0.07158244]
[1773124421371,0.00477852,70079.0,70073.0,0.07158244]
[1773124421981,0.03,70080.0,70073.0,0.07158244]